fUST/lending_fUST_20250615
["ID","MTS","AMOUNT","RATE_DAILY","PERIOD"]
[365829196,1749942647465,-5000.0,0.00023347,2]
[365829197,1749942647476,-13699.94791372,0.00023363,2]
[365829198,1749942647485,-500.0,0.00023372,2]
[365829199,1749942647495,-226.0,0.00023375,2]
[365829200,1749942647507,-1575.01399744,0.00023417,9]
[365829201,1749942647518,-428.57648092,0.00023422,2]
[365829202,1749942647528,-198.0,0.00023452,4]
[365829203,1749942647537,-151.0,0.00023452,4]
[365829204,1749942647547,-151.0,0.00023452,4]
[365829205,1749942647556,-151.0,0.00023452,4]
[365829206,1749942647566,-168.16966624,0.00023461,2]
[365829207,1749942647575,-500.0,0.00023475,2]
[365829208,1749942647586,-3062.39805771,0.00023476,2]
[365829209,1749942647596,-500.0,0.00023479,2]
[365829210,1749942647606,-3000.0,0.000235,2]
[365829211,1749942647615,-1423.306195,0.0002352,3]
[365829212,1749942647626,-603.05998381,0.0002352,2]
[365829213,1749942647635,-500.0,0.00023538,2]
[365829214,1749942647645,-2804.89,0.00023547,2]
[365829215,1749942647655,-1575.01399744,0.00023555,9]
[365829216,1749942647665,-151.0,0.00023561,7]
[365829217,1749942647674,-151.0,0.00023561,7]
[365829218,1749942647684,-151.0,0.00023561,7]
[365829219,1749942647694,-151.0,0.00023561,7]
[365829220,1749942647704,-151.0,0.00023561,7]
[365829221,1749942647713,-151.0,0.00023561,7]
[365829222,1749942647723,-460.0,0.00023561,4]
[365829223,1749942647733,-573.98,0.00023561,4]
[365829224,1749942647742,-460.0,0.00023561,4]
[365829225,1749942647751,-460.0,0.00023561,4]
[365829226,1749942647760,-460.0,0.00023561,4]
[365829227,1749942647770,-260.0,0.00023561,4]
[365829228,1749942647779,-460.0,0.00023561,4]
[365829229,1749942647789,-1136.8,0.00023561,4]
[365829230,1749942647798,-678.97,0.00023561,4]
[365829231,1749942647807,-475.35,0.00023561,4]
[365829232,1749942647817,-460.0,0.00023561,4]
[365829233,1749942647826,-547.98,0.00023561,4]
[365829234,1749942647836,-460.0,0.00023561,4]
[365829235,1749942647846,-460.0,0.00023561,4]
[365829236,1749942647855,-1454.97,0.00023561,4]
[365829237,1749942647865,-1630.71,0.00023561,4]
[365829238,1749942647875,-536.87,0.00023561,4]
[365829239,1749942647884,-639.76,0.00023561,4]
[365829240,1749942647893,-4036.84,0.00023561,4]
[365829241,1749942647903,-580.06,0.00023561,4]
[365829242,1749942647912,-460.0,0.00023561,4]
[365829243,1749942648018,-460.0,0.00023561,4]
[365829244,1749942648028,-1703.45,0.00023561,4]
[365829245,1749942648038,-670.68,0.00023561,4]
[365829246,1749942648047,-536.34,0.00023561,4]
[365829247,1749942648056,-554.82,0.00023561,4]
[365829248,1749942648066,-619.93,0.00023561,4]
[365829249,1749942648076,-710.88,0.00023561,4]
[365829250,1749942648085,-921.63,0.00023561,4]
[365829251,1749942648095,-1084.94,0.00023561,4]
[365829252,1749942648104,-460.0,0.00023561,4]
[365829253,1749942648114,-512.06,0.00023561,4]
[365829254,1749942648123,-460.0,0.00023561,4]
[365829255,1749942648132,-1131.02,0.00023561,4]
[365829256,1749942648142,-711.64,0.00023561,4]
[365829257,1749942648152,-460.0,0.00023561,4]
[365829258,1749942648162,-1108.04,0.00023561,4]
[365829259,1749942648171,-460.0,0.00023561,4]
[365829260,1749942648180,-460.0,0.00023561,4]
[365829261,1749942648190,-1002.91,0.00023561,4]
[365829262,1749942648199,-460.0,0.00023561,4]
[365829263,1749942648209,-857.45,0.00023561,4]
[365829264,1749942648218,-716.31,0.00023561,4]
[365829265,1749942648228,-3300.29,0.00023561,4]
[365829266,1749942648237,-2387.16,0.00023561,4]
[365829267,1749942648247,-3336.2,0.00023561,4]
[365829268,1749942648257,-1414.65,0.00023561,4]
[365829269,1749942648266,-460.0,0.00023561,4]
[365829270,1749942648275,-568.91,0.00023561,4]
[365829271,1749942648285,-460.0,0.00023561,4]
[365829272,1749942648294,-3965.51,0.00023561,4]
[365829273,1749942648305,-4101.37,0.00023561,4]
[365829274,1749942648314,-4842.36,0.00023561,4]
[365829275,1749942648324,-910.23,0.00023561,4]
[365829276,1749942648333,-517.58,0.00023561,2]
[365829277,1749942648342,-1001.53,0.00023561,4]
[365829278,1749942648351,-1022.41,0.00023561,4]
[365829279,1749942648361,-601.64,0.00023561,4]
[365829280,1749942648371,-460.0,0.00023561,4]
[365829281,1749942648381,-460.0,0.00023561,4]
[365829282,1749942648390,-1836.93,0.00023561,4]
[365829283,1749942648399,-539.89,0.00023561,4]
[365829284,1749942648409,-499.96,0.00023561,4]
[365829285,1749942648418,-460.0,0.00023561,4]
[365829286,1749942648427,-1522.71,0.00023561,4]
[365829287,1749942648437,-460.0,0.00023561,4]
[365829288,1749942648447,-672.89,0.00023561,4]
[365829289,1749942648456,-3168.7,0.00023561,4]
[365829290,1749942648466,-1355.96,0.00023561,4]
[365829291,1749942648475,-460.0,0.00023561,4]
[365829292,1749942648485,-726.58495711,0.00023573,2]
[365829293,1749942648495,-394.0,0.00023575,2]
[365829294,1749942648508,-500.0,0.00023579,2]
[365829295,1749942648518,-500.0,0.00023586,2]
[365829296,1749942648528,-1000.0,0.00023586,2]
[365829297,1749942648538,-1000.0,0.00023588,2]
[365829298,1749942648548,-823.57971079,0.0002359,2]
[365829299,1749942648558,-500.0,0.0002359,2]
[365829300,1749942648568,-800.0,0.00023606,2]
[365829301,1749942648579,-1200.0,0.00023606,2]
[365829302,1749942648589,-423.38660093,0.00023606,2]
[365829303,1749942648601,-500.0,0.00023606,2]
[365829304,1749942648612,-504.97268055,0.00023606,2]
[365829305,1749942648623,-1000.0,0.00023606,2]
[365829306,1749942648635,-892.67113613,0.00023606,2]
[365829307,1749942648644,-508.50078384,0.00023606,2]
[365829308,1749942648656,-1000.0,0.00023606,2]
[365829309,1749942648666,-500.0,0.00023606,2]
[365829310,1749942648676,-500.0,0.00023606,2]
[365829311,1749942648686,-500.0,0.00023606,2]
[365829312,1749942648695,-500.0,0.00023606,2]
[365829313,1749942648705,-604.0,0.00023635,2]
[365829314,1749942648715,-561.71250713,0.00023642,2]
[365829315,1749942648724,-500.0,0.00023644,2]
[365829316,1749942648734,-500.0,0.00023664,2]
[365829317,1749942648744,-1575.01399744,0.00023693,9]
[365829318,1749942648754,-168.0,0.00023704,2]
[365829319,1749942648764,-1000.0,0.0002371,2]
[365829320,1749942648773,-151.0,0.00023735,7]
[365829321,1749942648783,-253.280868,0.00023735,7]
[365829322,1749942648793,-253.280868,0.00023735,7]
[365829323,1749942648803,-800.0,0.00023739,2]
[365829324,1749942648813,-1000.0,0.00023753,7]
[365829325,1749942648822,-1000.0,0.00023753,7]
[365829326,1749942648831,-1000.0,0.00023753,7]
[365829327,1749942648841,-1000.0,0.00023753,7]
[365829328,1749942648850,-1000.0,0.00023753,7]
[365829329,1749942648860,-1000.0,0.00023753,7]
[365829330,1749942648869,-1000.0,0.00023753,7]
[365829331,1749942648878,-1000.0,0.00023753,7]
[365829332,1749942648888,-845.10789306,0.00023753,7]
[365829333,1749942648897,-500.0,0.00023756,2]
[365829334,1749942648907,-1530.3962487,0.0002376,2]
[365829335,1749942648916,-12533.30537164,0.0002376,7]
[365829336,1749942648925,-428.57648093,0.00023786,2]
[365829337,1749942648934,-500.0,0.0002379,2]
[365829338,1749942648944,-420.0,0.00023799,2]
[365829339,1749942648954,-3000.0,0.000238,2]
[365829340,1749942648963,-151.0,0.000238,5]
[365829341,1749942648973,-3000.0,0.0002381,2]
[365829342,1749942648983,-420.0,0.00023812,2]
[365829343,1749942648992,-3000.0,0.0002382,2]
[365829344,1749942649002,-500.0,0.0002382,2]
[365829345,1749942649011,-3000.0,0.0002383,2]
[365829346,1749942649021,-1575.01399744,0.00023831,10]
[365829347,1749942649031,-800.0,0.00023834,2]
[365829348,1749942649040,-151.0,0.00023835,7]
[365829349,1749942649050,-173.611565,0.00023835,7]
[365829350,1749942649059,-173.611565,0.00023835,7]
[365829351,1749942649069,-460.0,0.00023835,4]
[365829352,1749942649078,-573.98,0.00023835,4]
[365829353,1749942649088,-460.0,0.00023835,4]
[365829354,1749942649099,-460.0,0.00023835,4]
[365829355,1749942649108,-460.0,0.00023835,4]
[365829356,1749942649118,-460.0,0.00023835,4]
[365829357,1749942649128,-1136.8,0.00023835,4]
[365829358,1749942649138,-678.97,0.00023835,4]
[365829359,1749942649148,-475.35,0.00023835,4]
[365829360,1749942649157,-163.89553763,0.00023835,4]
[365829361,1749942649167,-547.98,0.00023835,4]
[365829362,1749942649176,-460.0,0.00023835,4]
[365829363,1749942649186,-460.0,0.00023835,4]
[365829364,1749942649195,-1454.97,0.00023835,4]
[365829365,1749942649204,-1630.71,0.00023835,4]
[365829366,1749942649215,-536.87,0.00023835,4]
[365829367,1749942649224,-639.76,0.00023835,4]
[365829368,1749942649233,-4036.84,0.00023835,4]
[365829369,1749942649243,-580.06,0.00023835,4]
[365829370,1749942649252,-460.0,0.00023835,4]
[365829371,1749942649261,-460.0,0.00023835,4]
[365829372,1749942649270,-1703.45,0.00023835,4]
[365829373,1749942649280,-670.68,0.00023835,4]
[365829374,1749942649290,-536.34,0.00023835,4]
[365829375,1749942649299,-554.82,0.00023835,4]
[365829376,1749942649309,-619.93,0.00023835,4]
[365829377,1749942649320,-710.88,0.00023835,4]
[365829378,1749942649330,-921.63,0.00023835,4]
[365829379,1749942649339,-1084.94,0.00023835,4]
[365829380,1749942649349,-460.0,0.00023835,4]
[365829381,1749942649359,-512.06,0.00023835,4]
[365829382,1749942649368,-460.0,0.00023835,4]
[365829383,1749942649379,-1131.02,0.00023835,4]
[365829384,1749942649389,-711.64,0.00023835,4]
[365829385,1749942649398,-380.0,0.00023835,4]
[365829386,1749942649408,-1108.04,0.00023835,4]
[365829387,1749942649418,-460.0,0.00023835,4]
[365829388,1749942649428,-460.0,0.00023835,4]
[365829389,1749942649437,-1002.91,0.00023835,4]
[365829390,1749942649446,-190.80421666,0.00023835,4]
[365829391,1749942649456,-857.45,0.00023835,4]
[365829392,1749942649466,-716.31,0.00023835,4]
[365829393,1749942649476,-3300.29,0.00023835,4]
[365829394,1749942649484,-2387.16,0.00023835,4]
[365829395,1749942649495,-3336.2,0.00023835,4]
[365829396,1749942649505,-1414.65,0.00023835,4]
[365829397,1749942649517,-460.0,0.00023835,4]
[365829398,1749942649527,-169.59636158,0.00023835,4]
[365829399,1749942649563,-399.31363842,0.00023835,4]
[365829400,1749942649573,-159.481499,0.00023835,7]
[365829401,1749942649588,-460.0,0.00023835,4]
[365829402,1749942649599,-1736.72590608,0.00023835,4]
[365829403,1749942649747,-383.112,0.00023287,4]
[365829404,1749942651411,-430.0,0.00021917,4]
[365829405,1749942651420,-470.0,0.00021917,4]
[365829406,1749942651429,-460.0,0.00021917,4]
[365829407,1749942651439,-460.0,0.00022191,4]
[365829408,1749942651448,-460.0,0.00022465,4]
[365829409,1749942651457,-2479.7373054,0.00022545,2]
[365829410,1749942651467,-2479.7373054,0.00022908,2]
[365829411,1749942651475,-2479.7373054,0.00023272,2]
[365829412,1749942651485,-76.888,0.00023287,4]
[365829413,1749942651495,-460.0,0.00023561,4]
[365829414,1749942651505,-2364.64409392,0.00023835,4]
[365829415,1749942651519,-3965.51,0.00023835,4]
[365829416,1749942651528,-159.481499,0.00023835,7]
[365829417,1749942651537,-4842.36,0.00023835,4]
[365829418,1749942651547,-910.23,0.00023835,4]
[365829419,1749942651557,-517.58,0.00023835,2]
[365829420,1749942651566,-1001.53,0.00023835,4]
[365829421,1749942651575,-1022.41,0.00023835,4]
[365829422,1749942651586,-601.64,0.00023835,4]
[365829423,1749942651597,-460.0,0.00023835,4]
[365829424,1749942651607,-460.0,0.00023835,4]
[365829425,1749942651616,-1836.93,0.00023835,4]
[365829426,1749942651626,-499.96,0.00023835,4]
[365829427,1749942651635,-539.89,0.00023835,4]
[365829428,1749942651645,-460.0,0.00023835,4]
[365829429,1749942651654,-1522.71,0.00023835,4]
[365829430,1749942651664,-460.0,0.00023835,4]
[365829431,1749942651674,-672.89,0.00023835,4]
[365829432,1749942651683,-3168.7,0.00023835,4]
[365829433,1749942651692,-1355.96,0.00023835,4]
[365829434,1749942651701,-460.0,0.00023835,4]
[365829435,1749942651710,-460.0,0.00023835,4]
[365829436,1749942651719,-3000.0,0.0002384,2]
[365829437,1749942651728,-800.0,0.00023849,2]
[365829438,1749942651737,-3000.0,0.0002385,2]
[365829439,1749942651747,-3000.0,0.0002386,2]
[365829440,1749942651756,-17774.05064811,0.00023868,2]
[365829441,1749942651765,-48019.61385961,0.00023868,2]
[365829442,1749942651775,-124947.93190107,0.00023868,2]
[365829443,1749942651784,-151.0,0.00023868,7]
[365829444,1749942651793,-151.0,0.00023868,7]
[365829445,1749942651802,-151.0,0.00023868,7]
[365829446,1749942651811,-3000.0,0.0002387,2]
[365829447,1749942651820,-500.79071898,0.00023873,2]
[365829448,1749942651830,-500.0,0.00023873,2]
[365829449,1749942651839,-500.0,0.00023873,2]
[365829450,1749942651849,-12533.30537164,0.00023874,2]
[365829451,1749942651859,-160.0,0.00023874,2]
[365829452,1749942651868,-3000.0,0.0002388,2]
[365829453,1749942651964,-151.0,0.0002388,7]
[365829454,1749942651975,-253.280868,0.0002388,7]
[365829455,1749942651984,-253.280868,0.0002388,7]
[365829456,1749942651993,-500.0,0.00023885,2]
[365829457,1749942652003,-3000.0,0.0002389,2]
[365829458,1749942652012,-5000.0,0.00023895,2]
[365829459,1749942652022,-326.46134904,0.00023899,2]
[365829460,1749942652032,-3000.0,0.000239,2]
[365829461,1749942652042,-2880.22,0.000239,2]
[365829462,1749942652051,-5738.07650511,0.000239,2]
[365829463,1749942652060,-150.0,0.00023903,2]
[365829464,1749942652069,-150.0,0.00023903,2]
[365829465,1749942652078,-150.0,0.00023903,2]
[365829466,1749942652087,-964.0,0.00023903,2]
[365829467,1749942652097,-2160.0,0.00023903,2]
[365829468,1749942652106,-653.0,0.00023903,2]
[365829469,1749942652117,-800.0,0.00023906,2]
[365829470,1749942652126,-3000.0,0.0002391,2]
[365829471,1749942652136,-500.0,0.00023916,2]
[365829472,1749942652145,-3000.0,0.0002392,2]
[365829473,1749942652154,-3000.0,0.0002393,2]
[365829474,1749942652164,-3946.295596,0.0002394,2]
[365829475,1749942652175,-399.78354313,0.00023973,2]
[365829476,1749942652184,-563.16687752,0.00023973,2]
[365829477,1749942652194,-150.0,0.00023973,2]
[365829478,1749942652203,-200.0,0.00023999,2]
[365829479,1749942652212,-277017.70310688,0.00024,2]
[365829480,1749942652225,-634.35839834,0.00024,2]
[365829481,1749942797344,-181.60870613,0.00020908,2]
[365829487,1749943459707,200.322266,0.00013699,2]
[365829494,1749943532064,-155.0,0.00019677,2]
[365829496,1749943629126,-162.0,0.00019677,2]
[365829497,1749943629148,-93.09983167,0.00020187,2]
[365829498,1749943636098,-107.22243433,0.00020187,2]
[365829499,1749943636121,-188.32325875,0.0002044,2]
[365829503,1749943651728,390.26684298,0.000189,2]
[365829505,1749943654127,-4657.38896561,0.00020012,2]
[365829506,1749943654150,-20.02498325,0.0002044,2]
[365829507,1749943654175,-268.89155346,0.00020458,2]
[365829508,1749943654200,-2113.04957779,0.00020504,2]
[365829515,1749943669606,226.35468164,0.00018,2]
[365829638,1749943832353,-155.66313013,0.00019,2]
[365829639,1749943832362,-1136.8548243,0.00020495,2]
[365829641,1749943832372,-3446.99884251,0.00020504,2]
[365829642,1749943832381,-214.17422079,0.00020558,2]
[365829644,1749943832390,-488.9885298,0.00020673,2]
[365829646,1749943832399,-433.2578762,0.00020758,2]
[365829647,1749943832408,-666.0,0.00020885,2]
[365829648,1749943832417,-500.0,0.00021154,2]
[365829649,1749943832426,-168.0,0.00021406,2]
[365829650,1749943832435,-1200.0,0.00021694,2]
[365829651,1749943832443,-1443.1,0.00021695,2]
[365829652,1749943832452,-168.0,0.00021707,2]
[365829653,1749943832462,-300.0,0.00021777,2]
[365829654,1749943832471,-300.0,0.00021777,2]
[365829655,1749943832480,-300.0,0.00021777,2]
[365829656,1749943832490,-300.0,0.00021778,2]
[365829657,1749943832499,-168.0,0.00021838,2]
[365829658,1749943832507,-168.0,0.00021841,2]
[365829659,1749943832517,-500.0,0.00021916,2]
[365829660,1749943832526,-173.02863845,0.00021916,2]
[365829661,1749943832535,-385.08409743,0.00021916,2]
[365829663,1749943832544,-346.275,0.00021916,2]
[365829664,1749943832553,-527.93418379,0.00021916,2]
[365829666,1749943832563,-182.37,0.00021916,2]
[365829668,1749943832572,-460.0,0.00021917,4]
[365829670,1749943832582,-448.33,0.00021917,4]
[365829672,1749943832591,-460.0,0.00021917,4]
[365829674,1749943832601,-460.0,0.00021917,4]
[365829676,1749943832610,-460.0,0.00021917,4]
[365829678,1749943832619,-430.0,0.00021917,4]
[365829680,1749943832629,-460.0,0.00021917,4]
[365829682,1749943832638,-514.1925741,0.00021917,2]
[365829684,1749943832648,-533.48,0.00021917,4]
[365829686,1749943832657,-460.0,0.00021917,4]
[365829688,1749943832667,-400.0,0.00021917,4]
[365829690,1749943832676,-460.0,0.00021917,4]
[365829692,1749943832685,-460.0,0.00021917,4]
[365829694,1749943832694,-460.0,0.00021917,4]
[365829696,1749943832703,-460.0,0.00021917,4]
[365829698,1749943832713,-460.0,0.00021917,4]
[365829700,1749943832722,-390.0,0.00021917,4]
[365829702,1749943832731,-460.0,0.00021917,4]
[365829704,1749943832740,-192.14086942,0.00021917,4]
[365829706,1749943832752,-267.85913058,0.00021917,4]
[365829708,1749943832761,-500.0,0.00021917,4]
[365829710,1749943832770,-500.0,0.00021917,4]
[365829712,1749943832779,-500.0,0.00021917,4]
[365829714,1749943832788,-500.0,0.00021917,4]
[365829716,1749943832798,-500.0,0.00021917,4]
[365829718,1749943832807,-460.0,0.00021917,4]
[365829720,1749943832816,-460.0,0.00021917,4]
[365829722,1749943832825,-460.0,0.00021917,4]
[365829724,1749943832835,-340.0,0.00021917,4]
[365829726,1749943832844,-460.0,0.00021917,4]
[365829728,1749943832853,-264.57872674,0.00021917,4]
[365829729,1749943832863,-952.67,0.00021917,4]
[365829742,1749943833056,-380.0,0.00021917,4]
[365829743,1749943833070,-460.0,0.00021917,4]
[365829744,1749943833082,-460.0,0.00021917,4]
[365829745,1749943833092,-460.0,0.00021917,4]
[365829746,1749943833103,-460.0,0.00021917,4]
[365829747,1749943833113,-460.0,0.00021917,4]
[365829748,1749943833123,-470.0,0.00021917,4]
[365829749,1749943833132,-460.0,0.00021917,4]
[365829750,1749943833142,-379.09793566,0.00021917,4]
[365829751,1749943833227,-80.90206434,0.00021917,4]
[365829752,1749943833237,-490.0,0.00021917,4]
[365829753,1749943833247,-655.56,0.00021917,4]
[365829754,1749943833256,-460.0,0.00021917,4]
[365829755,1749943833266,-460.0,0.00021917,4]
[365829756,1749943833275,-309.98991249,0.00021917,4]
[365829757,1749943833284,-460.0,0.00021917,4]
[365829758,1749943833295,-460.0,0.00021917,4]
[365829759,1749943833305,-460.0,0.00021917,4]
[365829760,1749943833314,-508.26,0.00021917,4]
[365829761,1749943833324,-460.0,0.00021917,4]
[365829762,1749943833334,-460.0,0.00021917,4]
[365829763,1749943833344,-460.0,0.00021917,4]
[365829764,1749943833355,-460.0,0.00021917,4]
[365829765,1749943833365,-370.0,0.00021917,4]
[365829766,1749943833375,-460.0,0.00021917,4]
[365829767,1749943833384,-460.0,0.00021917,4]
[365829768,1749943833394,-460.0,0.00021917,4]
[365829769,1749943833404,-460.0,0.00021917,4]
[365829770,1749943833414,-3161.57,0.00021917,4]
[365829771,1749943833424,-460.0,0.00021917,4]
[365829772,1749943833434,-479.17295753,0.00021917,4]
[365829773,1749943833445,-568.79,0.00021917,4]
[365829774,1749943833455,-3510.77,0.00021917,4]
[365829775,1749943833464,-400.0,0.00021917,4]
[365829776,1749943833474,-460.0,0.00021917,4]
[365829777,1749943833484,-450.0,0.00021917,4]
[365829778,1749943833494,-1282.49,0.00021917,4]
[365829779,1749943833503,-470.31422482,0.00021917,4]
[365829780,1749943833513,-460.0,0.00021917,4]
[365829781,1749943833523,-373.65476012,0.00021917,4]
[365829782,1749943833533,-460.0,0.00021917,4]
[365829783,1749943833543,-617.5,0.00021917,4]
[365829784,1749943833553,-460.0,0.00021917,4]
[365829785,1749943833562,-460.0,0.00021917,4]
[365829786,1749943833571,-1512.51,0.00021917,4]
[365829787,1749943833582,-340.0,0.00021917,4]
[365829788,1749943833596,-474.54,0.00021917,4]
[365829789,1749943833606,-647.16,0.00021917,4]
[365829790,1749943833616,-568.16,0.00021917,4]
[365829791,1749943833626,-460.0,0.00021917,4]
[365829792,1749943833636,-460.0,0.00021917,4]
[365829793,1749943833645,-500.0,0.00021917,4]
[365829794,1749943833655,-460.0,0.00021917,4]
[365829795,1749943833665,-460.0,0.00021917,4]
[365829796,1749943833675,-577.25,0.00021917,4]
[365829797,1749943833684,-460.0,0.00021917,4]
[365829798,1749943833694,-340.0,0.00021917,4]
[365829799,1749943833704,-890.21,0.00021917,4]
[365829800,1749943833714,-460.0,0.00021917,4]
[365829801,1749943833723,-491.97,0.00021917,4]
[365829802,1749943833733,-460.0,0.00021917,4]
[365829803,1749943833743,-834.18,0.00021917,4]
[365829804,1749943833753,-460.0,0.00021917,4]
[365829805,1749943833762,-460.0,0.00021917,4]
[365829806,1749943833772,-1042.36,0.00021917,4]
[365829807,1749943833781,-460.0,0.00021917,4]
[365829808,1749943833791,-3519.69,0.00021917,4]
[365829809,1749943833800,-460.0,0.00021917,4]
[365829810,1749943833811,-460.0,0.00021917,4]
[365829811,1749943833820,-460.0,0.00021917,4]
[365829812,1749943833830,-460.0,0.00021917,4]
[365829813,1749943833840,-460.0,0.00021917,4]
[365829814,1749943833849,-206.82,0.00021917,4]
[365829815,1749943833859,-1059.54,0.00021917,4]
[365829816,1749943833868,-894.98,0.00021917,4]
[365829817,1749943833878,-460.0,0.00021917,4]
[365829818,1749943833887,-2942.57,0.00021917,4]
[365829819,1749943833897,-460.0,0.00021917,4]
[365829820,1749943833910,-700.98,0.00021917,4]
[365829821,1749943833920,-806.17,0.00021917,4]
[365829822,1749943833929,-681.97,0.00021917,4]
[365829823,1749943833939,-460.0,0.00021917,4]
[365829824,1749943833948,-460.0,0.00021917,4]
[365829825,1749943833958,-750.39,0.00021917,4]
[365829826,1749943833968,-596.86,0.00021917,4]
[365829827,1749943833978,-460.0,0.00021917,4]
[365829828,1749943833988,-360.0,0.00021917,4]
[365829829,1749943833999,-520.0,0.00021917,4]
[365829830,1749943834009,-460.0,0.00021917,4]
[365829831,1749943834019,-2463.43,0.00021917,4]
[365829832,1749943834029,-1292.67,0.00021917,4]
[365829833,1749943834039,-2573.6,0.00021917,4]
[365829834,1749943834049,-460.0,0.00021917,4]
[365829835,1749943834060,-512.75,0.00021917,2]
[365829836,1749943834070,-369.20581098,0.00021917,4]
[365829837,1749943834080,-460.0,0.00021917,4]
[365829838,1749943834090,-3021.9,0.00021917,4]
[365829839,1749943834100,-460.0,0.00021917,4]
[365829840,1749943834109,-460.0,0.00021917,4]
[365829841,1749943834119,-460.0,0.00021917,4]
[365829842,1749943834130,-792.56,0.00021917,4]
[365829843,1749943834147,-3582.21,0.00021917,4]
[365829844,1749943834157,-664.32,0.00021917,4]
[365829845,1749943834168,-1948.2,0.00021917,4]
[365829846,1749943834178,-460.0,0.00021917,4]
[365829847,1749943834189,-440.0,0.00021917,4]
[365829848,1749943834200,-460.0,0.00021917,4]
[365829849,1749943834210,-460.0,0.00021917,4]
[365829850,1749943834221,-460.0,0.00021917,4]
[365829851,1749943834231,-460.0,0.00021917,4]
[365829852,1749943834241,-430.0,0.00021917,4]
[365829853,1749943834251,-904.32,0.00021917,4]
[365829854,1749943834261,-466.1,0.00021917,4]
[365829855,1749943834271,-2402.93,0.00021917,4]
[365829856,1749943834280,-1443.35,0.00021917,4]
[365829857,1749943834290,-450.0,0.00021917,4]
[365829858,1749943834300,-576.45,0.00021917,4]
[365829859,1749943834310,-1057.75,0.00021917,4]
[365829860,1749943834319,-430.0,0.00021917,4]
[365829861,1749943834329,-460.0,0.00021917,4]
[365829862,1749943834339,-1167.41,0.00021917,4]
[365829863,1749943834349,-478.63694731,0.00021978,2]
[365829864,1749943834359,-168.0,0.0002211,2]
[365829865,1749943834368,-8218.37040835,0.00022163,2]
[365829866,1749943834382,-1809.5946463,0.00022163,2]
[365829883,1749943838219,-160.0,0.00020711,2]
[365829884,1749943838229,-241.30276936,0.00021917,4]
[365829885,1749943838247,-3075.95723064,0.00021917,4]
[365829886,1749943838257,-5972.03494535,0.00022163,2]
[365829887,1749943838266,-2573.8,0.00022163,2]
[365829888,1749943838276,-500.0,0.00022173,2]
[365829890,1749943838286,-500.0,0.00022173,2]
[365829891,1749943838296,-500.0,0.00022173,2]
[365829892,1749943838306,-500.0,0.00022173,2]
[365829895,1749943838321,-500.0,0.00022173,2]
[365829897,1749943838331,-465.55619232,0.00022173,2]
[365829899,1749943838342,-500.0,0.00022173,2]
[365829901,1749943838351,-516.84341229,0.00022188,2]
[365829903,1749943838361,-500.0,0.00022189,4]
[365829904,1749943838372,-500.0,0.0002219,2]
[365829905,1749943838382,-160.0,0.0002219,2]
[365829906,1749943838392,-500.0,0.0002219,4]
[365829907,1749943838402,-500.0,0.0002219,4]
[365829908,1749943838411,-291.34,0.0002219,4]
[365829909,1749943838421,-227.14890994,0.0002219,2]
[365829910,1749943838430,-500.0,0.0002219,2]